bitfinex/quotes_SOLUSD_20260304
["timestamp","ask_amount","ask_price","bid_price","bid_amount"]
[1772666721126,0.28432314,90.859,90.824,0.5]
[1772666721127,13.9,90.85,90.824,0.5]
[1772666721324,0.28432314,90.869,90.824,0.5]
[1772666721720,11.00497424,90.868,90.826,0.5]
[1772666723633,0.28432314,90.869,90.826,0.5]
[1772666723840,0.28432314,90.869,90.828,0.5]
[1772666726117,11.00497424,90.868,90.83,0.5]
[1772666728927,11.00497424,90.868,90.831,11.00945712]
[1772666729130,0.28432314,90.859,90.82,11.01079057]
[1772666730046,0.28432314,90.849,90.81,0.5]
[1772666730414,0.28432314,90.849,90.803,0.5]
[1772666730415,8.98657307,90.84,90.803,0.5]
[1772666730724,8.98657307,90.84,90.804,11.01265213]
[1772666730725,0.28432314,90.839,90.804,11.01265213]
[1772666731028,11.00860873,90.838,90.8,0.5]
[1772666731532,13.9,90.84,90.8,0.5]
[1772666733231,13.9,90.84,90.802,0.5]
[1772666736542,13.9,90.84,90.804,0.5]
[1772666739343,104.9,90.889,90.807,0.5]
[1772666739547,8.97538449,90.86,90.807,0.5]
[1772666739742,0.28432314,90.859,90.807,0.5]
[1772666740337,0.28432314,90.849,90.807,0.5]
[1772666741334,11.00739697,90.848,90.808,11.01224561]
[1772666741538,11.00739697,90.848,90.809,0.5]
[1772666742638,4.18939139,90.84,90.81,11.01200308]
[1772666742838,4.18939139,90.84,90.81,11.51200308]
[1772666743345,11.00739697,90.848,90.811,0.5]
[1772666743859,11.00739697,90.848,90.812,11.01176056]
[1772666744051,11.00739697,90.848,90.813,0.5]
[1772666745841,38.52588939,90.848,90.805,0.5]
[1772666748767,38.52588939,90.848,90.807,0.5]
[1772666749062,11.00739697,90.848,90.807,0.5]
[1772666749855,11.00633654,90.857,90.807,0.5]
[1772666751670,11.00633654,90.857,90.808,38.54285965]
[1772666751870,0.28432314,90.859,90.809,0.5]
[1772666752969,11.00600635,90.86,90.809,0.5]
[1772666753268,0.28432314,90.859,90.811,0.5]
[1772666753962,0.28432314,90.864,90.811,0.5]
[1772666754764,11.00557982,90.863,90.811,0.5]
[1772666754960,0.28432314,90.862,90.811,0.5]
[1772666756267,13.9,90.86,90.813,0.5]
[1772666757576,11.00509535,90.867,90.813,0.5]
[1772666758055,0.28432314,90.869,90.813,0.5]
[1772666758359,11.00497424,90.868,90.815,0.5]
[1772666758561,0.28432314,90.873,90.815,0.5]
[1772666759570,0.28432314,90.869,90.815,0.5]
[1772666759877,0.28432314,90.873,90.815,0.5]
[1772666760675,0.28432314,90.871,90.817,0.5]
[1772666762375,0.28432314,90.869,90.817,0.5]
[1772666762560,4.18939139,90.86,90.819,0.5]
[1772666763880,0.28432314,90.859,90.819,0.5]
[1772666764468,11.00497424,90.868,90.819,0.5]
[1772666764975,0.28432314,90.875,90.821,0.5]
[1772666765474,0.28432314,90.879,90.824,0.5]
[1772666767373,0.2,90.88,90.826,0.5]
[1772666768259,1e-08,90.88,90.827,0.28432314]
[1772666768463,1e-08,90.88,90.832,0.5]
[1772666769385,1e-08,90.88,90.825,93.58656757]
[1772666769386,1e-08,90.88,90.834,0.5]
[1772666770862,0.28432314,90.879,90.834,0.5]
[1772666772090,13.9,90.87,90.836,0.5]
[1772666773870,0.28432314,90.868,90.835,39.03140309]
[1772666774288,0.28432314,90.868,90.836,0.5]
[1772666774477,13.9,90.87,90.836,0.5]
[1772666777090,1e-08,90.88,90.838,0.5]
[1772666778373,0.28432314,90.879,90.838,0.5]
[1772666778994,11.28917628,90.869,90.831,11.50945712]
[1772666779391,11.28917628,90.869,90.832,0.5]
[1772666779890,1e-08,90.88,90.832,0.5]
[1772666780889,0.28432314,90.878,90.832,0.5]
[1772666781073,1e-08,90.88,90.834,0.5]
[1772666781277,0.28432314,90.878,90.834,0.5]
[1772666783105,0.28432314,90.878,90.833,38.53225149]
[1772666783106,1e-08,90.88,90.836,0.5]
[1772666784903,0.28432314,90.878,90.836,0.5]
[1772666785285,0.28432314,90.878,90.838,0.5]
[1772666786104,13.9,90.87,90.838,0.5]
[1772666787505,0.28432314,90.868,90.831,0.5]
[1772666787895,13.9,90.87,90.831,0.5]
[1772666789587,11.00485314,90.869,90.831,0.5]
[1772666789999,13.9,90.87,90.833,0.5]
[1772666791409,11.28917628,90.869,90.832,11.00933591]
[1772666791707,38.80130913,90.869,90.832,11.00933591]
[1772666791909,11.28917628,90.869,90.832,11.00933591]
[1772666792106,11.28917628,90.869,90.832,28.02333979]
[1772666793088,11.28917628,90.869,90.77,61.3]
[1772666793089,0.28432314,90.839,90.8,0.5]
[1772666793289,4.18939139,90.84,90.799,11.01333715]
[1772666793290,0.4869981,90.828,90.799,10.1939975]
[1772666794303,0.28432314,90.826,90.789,27.53618961]
[1772666795303,0.28432314,90.826,90.79,0.5]
[1772666795495,0.28432314,90.819,90.791,38.55007654]
[1772666796012,0.28432314,90.819,90.791,39.05007654]
[1772666797195,13.9,90.82,90.792,0.5]
[1772666798197,13.9,90.82,90.794,0.5]
[1772666799698,13.9,90.82,90.796,0.5]
[1772666802920,13.9,90.82,90.797,11.01357974]
[1772666804101,11.29523495,90.819,90.781,0.5]
[1772666804304,0.28432314,90.818,90.775,27.54037103]
[1772666804830,0.28432314,90.819,90.778,0.5]
[1772666805118,31.70845956,90.85,90.778,0.5]
[1772666805329,11.29159894,90.849,90.778,0.5]
[1772666805506,11.0072758,90.849,90.778,0.5]
[1772666805707,0.14216157,90.848,90.778,0.5]
[1772666805901,11.00606434,90.859,90.782,0.5]
[1772666806119,11.00606434,90.859,90.784,0.5]
[1772666806319,0.28432314,90.858,90.784,0.5]
[1772666806916,0.28432314,90.856,90.786,0.5]
[1772666807118,0.28432314,90.849,90.786,0.5]
[1772666808112,0.28432314,90.856,90.786,0.5]
[1772666808529,0.28432314,90.861,90.786,0.5]
[1772666808916,11.00618547,90.858,90.791,0.5]
[1772666810913,0.28432314,90.861,90.791,0.5]
[1772666811314,0.28432314,90.861,90.795,3.69383402]
[1772666811517,0.28432314,90.861,90.796,0.5]
[1772666811718,0.14216157,90.861,90.796,0.5]
[1772666812837,0.14216157,90.867,90.798,0.5]
[1772666812838,0.28432314,90.865,90.798,0.5]
[1772666813730,0.28432314,90.865,90.797,137.66974677]
[1772666813731,0.28432314,90.867,90.801,0.5]
[1772666815542,11.28941849,90.867,90.806,0.5]
[1772666815836,0.28432314,90.865,90.806,0.5]
[1772666817633,104.9,90.866,90.805,3.69383402]
[1772666817634,104.9,90.866,90.807,82.59275165]
[1772666817845,104.9,90.866,90.808,0.5]
[1772666818841,104.9,90.866,90.81,0.5]
[1772666820143,0.28432314,90.859,90.81,0.5]
[1772666820324,0.28432314,90.849,90.809,38.54243521]
[1772666820518,38.51832306,90.866,90.81,0.5]
[1772666820519,11.00528188,90.866,90.81,0.5]
[1772666821138,11.00528188,90.866,90.812,0.5]
[1772666821536,4.19042785,90.86,90.811,38.54158637]
[1772666821741,4.19042785,90.84,90.811,11.01188182]
[1772666821948,4.19042785,90.84,90.801,27.53267481]
[1772666821949,4.19042785,90.82,90.776,0.5]
[1772666822628,4.19042785,90.85,90.776,0.5]
[1772666822629,0.28432314,90.829,90.776,0.5]
[1772666823028,0.28432314,90.849,90.781,0.5]
[1772666823228,3.69383402,90.872,90.781,0.5]
[1772666823229,0.28432314,90.839,90.781,0.5]
[1772666823430,4.19042785,90.83,90.781,0.5]
[1772666825152,0.28432314,90.837,90.783,0.5]
[1772666826360,4.19042785,90.85,90.786,0.5]
[1772666826527,43.9938953,90.922,90.788,0.5]
[1772666826528,4.19042785,90.86,90.788,0.5]
[1772666826850,11.0036422,90.879,90.801,0.28432314]
[1772666827059,11.0036422,90.879,90.808,0.5]
[1772666827232,0.28432314,90.878,90.813,0.5]
[1772666827851,11.0036422,90.879,90.813,0.5]
[1772666828028,0.28432314,90.878,90.813,0.5]
[1772666828431,11.0036422,90.879,90.813,0.5]
[1772666828845,0.14216157,90.878,90.813,0.5]
[1772666829047,1e-08,90.88,90.817,0.5]
[1772666829237,1e-08,90.88,90.822,0.5]
[1772666829550,1e-08,90.88,90.828,0.5]
[1772666830834,4.19042785,90.87,90.822,0.5]
[1772666831445,0.28432314,90.874,90.824,0.5]
[1772666832151,1e-08,90.88,90.827,0.5]
[1772666834452,1e-08,90.88,90.832,0.5]
[1772666838744,1e-08,90.88,90.837,0.5]
[1772666839877,4.19042786,90.88,90.837,0.5]
[1772666840044,1e-08,90.88,90.837,0.5]
[1772666840854,1e-08,90.88,90.839,0.5]
[1772666842156,1e-08,90.88,90.838,137.60760914]
[1772666842157,1e-08,90.88,90.842,0.5]
[1772666845763,1e-08,90.88,90.846,3.69383402]
[1772666846073,1e-08,90.88,90.847,0.5]
[1772666846769,1e-08,90.88,90.848,38.52588939]
[1772666846975,1e-08,90.88,90.849,0.5]
[1772666848673,1e-08,90.88,90.85,38.52504127]
[1772666851559,1e-08,90.88,90.85,0.5]
[1772666853864,1e-08,90.88,90.851,11.00703349]
[1772666854687,1e-08,90.88,90.852,0.5]
[1772666856982,1e-08,90.88,90.853,11.00679119]
[1772666858374,0.28432314,90.879,90.842,11.00812399]
[1772666858859,0.28432314,90.877,90.84,0.5]
[1772666859059,1e-08,90.88,90.84,0.5]
[1772666859279,4.82477569,90.925,90.821,3.69383402]
[1772666859280,11.00080537,90.903,90.826,0.28432314]
[1772666859471,0.28432314,90.902,90.827,0.5]
[1772666860859,0.28432314,90.9,90.832,0.5]
[1772666862767,0.28432314,90.898,90.837,0.5]
[1772666863882,0.2,90.91,90.837,0.5]
[1772666864081,0.14216157,90.909,90.837,0.5]
[1772666864470,0.28432314,90.909,90.837,0.5]
[1772666864863,0.28432314,90.907,90.842,0.5]
[1772666866883,0.28432314,90.907,90.843,137.60003521]
[1772666867088,0.28432314,90.907,90.847,0.5]
[1772666868372,11.00037401,90.906,90.847,0.5]
[1772666868688,0.28432314,90.905,90.847,0.5]
[1772666869096,4.38637222,90.91,90.695,24.50295949]
[1772666869097,4.18637222,90.89,90.845,0.5]
[1772666869279,0.28432314,90.899,90.845,0.5]
[1772666869878,11.000011,90.909,90.845,0.5]
[1772666870079,0.28432314,90.908,90.845,0.5]
[1772666870694,0.2,90.91,90.848,0.5]
[1772666870873,11.000011,90.909,90.849,38.52546532]
[1772666871078,11.000011,90.909,90.853,0.5]
[1772666873293,11.000011,90.909,90.854,38.52334514]
[1772666873475,11.000011,90.909,90.855,0.5]
[1772666876398,0.2,90.91,90.857,0.5]
[1772666878309,10.99777932,90.928,90.865,0.64216157]
[1772666878494,10.99777932,90.928,90.868,0.5]
[1772666878800,46.60390755,90.94,90.868,0.5]
[1772666878801,10.99729499,90.932,90.868,0.5]
[1772666879498,10.99806257,90.926,90.868,0.5]
[1772666879881,11.28070533,90.939,90.867,0.5]
[1772666880480,10.99638219,90.939,90.874,0.5]
[1772666880678,10.99638219,90.939,90.878,0.5]
[1772666881202,0.28432314,90.949,90.878,0.5]
[1772666881404,11.27889182,90.954,90.888,0.5]
[1772666881600,10.99456868,90.954,90.888,0.5]
[1772666881907,0.28432314,90.953,90.888,0.5]
[1772666882491,10.99481044,90.952,90.89,0.5]
[1772666882916,4.18637222,90.95,90.89,0.5]
[1772666886506,10.99517311,90.949,90.892,0.5]
[1772666887493,27.48336642,90.965,90.895,0.5]
[1772666887693,0.28432314,90.959,90.895,0.5]
[1772666888911,0.28432314,90.957,90.9,0.5]
[1772666890104,4.18637222,90.95,90.9,0.5]
[1772666890312,4.18637222,90.94,90.9,0.5]
[1772666891099,10.99638219,90.939,90.902,0.5]
[1772666891598,0.28432314,90.956,90.902,0.5]
[1772666891797,0.28432314,90.956,90.905,0.5]
[1772666892198,4.18637222,90.95,90.905,0.5]
[1772666892411,4.18637222,90.94,90.905,0.5]
[1772666893497,0.28432314,90.949,90.906,11.00037401]
[1772666894003,0.28432314,90.949,90.906,11.50037401]
[1772666894206,0.28432314,90.949,90.907,0.5]
[1772666895411,0.28432314,90.949,90.879,88.02861479]
[1772666895412,0.28432314,90.919,90.868,11.00497424]
[1772666895592,3.69383402,90.947,90.863,11.00549677]
[1772666895593,4.18637222,90.89,90.863,11.00549677]
[1772666895798,4.18637222,90.89,90.867,23.61102475]
[1772666896009,11.00122113,90.899,90.867,23.61102475]
[1772666896213,4.18637222,90.92,90.868,0.5]
[1772666896415,10.99601944,90.942,90.868,0.5]
[1772666896416,0.28432314,90.929,90.868,0.5]
[1772666897809,4.18637222,90.92,90.87,0.5]
[1772666898217,4.18637222,90.91,90.869,38.51698599]
[1772666898812,4.18637222,90.91,90.869,39.01698599]
[1772666899001,4.18637222,90.91,90.87,0.5]
[1772666899206,0.28432314,90.919,90.87,0.5]
[1772666900119,0.28432314,90.917,90.872,0.5]
[1772666900618,0.28432314,90.917,90.85,3.69383402]
[1772666900619,4.18637222,90.91,90.85,3.69383402]
[1772666900847,4.18637222,90.88,90.836,0.5]
[1772666901115,4.18637222,90.88,90.837,0.5]
[1772666902917,4.18637222,90.88,90.839,0.5]
[1772666902918,11.0036422,90.879,90.839,0.5]
[1772666903913,11.0036422,90.879,90.838,11.00860873]
[1772666904317,4.18637222,90.87,90.838,11.00860873]
[1772666904817,38.51274771,90.879,90.838,11.00860873]
[1772666905120,11.0036422,90.879,90.834,0.5]
[1772666907307,11.0036422,90.879,90.836,0.5]
[1772666910209,11.0036422,90.879,90.838,0.5]
[1772666910408,0.28432314,90.887,90.838,0.5]
[1772666910605,0.28432314,90.898,90.838,0.5]
[1772666910909,0.14216157,90.898,90.838,0.5]
[1772666911219,0.28432314,90.898,90.838,0.5]
[1772666911803,27.50202386,90.903,90.839,0.5]
[1772666912025,27.50202386,90.903,90.841,0.5]
[1772666912715,11.000011,90.909,90.843,3.69383402]
[1772666912931,11.000011,90.909,90.848,0.5]
[1772666913926,0.28432314,90.908,90.848,0.5]
[1772666914224,4.18637222,90.9,90.85,0.5]
[1772666915923,11.00122113,90.899,90.852,0.5]
[1772666916810,11.00122113,90.899,90.854,0.5]
[1772666917321,4.18637222,90.89,90.853,11.00679119]
[1772666917727,4.18637222,90.88,90.847,11.50744581]
[1772666918130,4.18637222,90.88,90.847,11.00744581]
[1772666918509,4.18611249,90.88,90.847,11.00744581]
[1772666920230,11.0036422,90.879,90.841,0.5]
[1772666921616,4.18611249,90.87,90.841,0.5]
[1772666921917,4.18611249,90.87,90.836,11.50884141]
[1772666922227,11.00485314,90.869,90.836,0.5]
[1772666923334,0.28432314,90.876,90.838,0.5]
[1772666924324,13.9,90.88,90.838,0.5]
[1772666925236,24.90361126,90.88,90.838,0.5]
[1772666927143,24.90361126,90.88,90.84,0.5]
[1772666927443,24.90361126,90.88,90.804,11.01273071]
[1772666927444,0.28432314,90.849,90.804,11.01273071]
[1772666927613,0.28432314,90.849,90.803,4.65991379]
[1772666927614,4.18611249,90.82,90.803,1e-08]
[1772666928229,4.18611249,90.81,90.803,1e-08]
[1772666929543,0.28432314,90.817,90.803,1e-08]
[1772666930252,4.18611249,90.81,90.803,1e-08]
[1772666930432,4.18611249,90.81,90.781,0.5]
[1772666931751,0.28432314,90.815,90.781,0.5]
[1772666931928,11.0108844,90.82,90.783,0.5]
[1772666932123,38.53786083,90.82,90.783,0.5]
[1772666932451,11.0108844,90.82,90.783,0.5]
[1772666934449,11.00969954,90.829,90.785,0.5]
[1772666934960,38.5339484,90.829,90.785,0.5]
[1772666937252,38.5339484,90.829,90.787,0.5]
[1772666937554,0.28432314,90.828,90.787,0.5]
[1772666937756,4.18611249,90.82,90.787,0.5]
[1772666939333,11.01091181,90.819,90.787,0.5]
[1772666940457,11.01091181,90.819,90.789,0.5]
[1772666941352,0.28432314,90.826,90.789,0.5]
[1772666942053,38.53479691,90.827,90.791,0.5]
[1772666943340,38.53479691,90.827,90.793,0.5]
[1772666946953,38.53479691,90.827,90.795,0.5]
[1772666949243,4.18611249,90.82,90.787,0.5]
[1772666949438,4.18611249,90.82,90.778,0.5]
[1772666949664,4.18611249,90.81,90.778,0.5]
[1772666950057,4.18611249,90.81,90.771,0.5]
[1772666950457,4.18611249,90.81,90.771,11.01673441]
[1772666950668,4.18611249,90.81,90.772,0.5]
[1772666951168,38.54243521,90.809,90.772,0.5]
[1772666951762,0.28432314,90.808,90.772,0.5]
[1772666951964,4.18611249,90.79,90.75,0.6]
[1772666952166,0.28432314,90.776,90.74,0.1]
[1772666952346,0.47633883,90.769,90.74,0.1]
[1772666953376,0.47633883,90.767,90.74,0.1]
[1772666953750,11.01709853,90.768,90.74,0.1]
[1772666954172,11.01709853,90.768,90.741,0.46200922]
[1772666956068,0.47633883,90.769,90.74,0.1]
[1772666956463,0.47633883,90.769,90.74,0.56200922]
[1772666956668,0.14216157,90.764,90.74,0.1]
[1772666956858,0.47633883,90.763,90.74,0.1]
[1772666957763,0.47633883,90.75,90.73,1e-08]
[1772666958278,0.47633883,90.759,90.73,1e-08]
[1772666958967,0.47633883,90.759,90.73,0.47332994]
[1772666959964,0.48543232,90.757,90.73,0.47332994]
[1772666961491,11.01831243,90.758,90.73,0.47332994]
[1772666961867,11.01576355,90.779,90.732,0.47332993]
[1772666962058,0.28432314,90.778,90.734,0.47332993]
[1772666962377,0.28432314,90.776,90.734,0.47332993]
[1772666962560,0.28432314,90.774,90.734,0.47332993]
[1772666962879,0.62759389,90.774,90.734,0.47332993]
[1772666963076,38.69988247,90.773,90.734,0.47332993]
[1772666963466,39.18531479,90.773,90.734,0.47332993]
[1772666963662,0.48543232,90.772,90.734,0.47332993]
[1772666964575,4.18611249,90.77,90.734,0.47332993]
[1772666965366,38.55942006,90.769,90.734,0.47332993]
[1772666965565,38.55942006,90.769,90.735,11.02110541]
[1772666965871,38.55942006,90.769,90.736,0.47332993]
[1772666968579,0.48653487,90.768,90.736,0.47332993]
[1772666968964,38.55942006,90.769,90.736,0.47332993]
[1772666969169,38.55942006,90.769,90.73,1e-08]
[1772666969170,4.18611249,90.75,90.73,1e-08]
[1772666969490,38.5683431,90.748,90.72,0.1]
[1772666970482,11.0195266,90.748,90.72,0.1]
[1772666971189,11.0195266,90.748,90.721,0.49798375]
[1772666972179,27.54873486,90.749,90.721,0.49798375]
[1772666972686,28.03526973,90.749,90.721,0.49798375]
[1772666973085,27.54873486,90.749,90.721,0.49798375]
[1772666973292,0.48653487,90.748,90.721,0.49798375]
[1772666973595,0.48653487,90.739,90.699,11.02544682]
[1772666974380,4.18611249,90.74,90.648,4.82477569]
[1772666974381,0.48653487,90.737,90.681,3.69383402]
[1772666975389,0.48653487,90.733,90.681,3.69383402]
[1772666975597,0.48653487,90.733,90.701,0.49798375]
[1772666976496,38.57514437,90.732,90.701,0.49798375]
[1772666976796,0.48653487,90.729,90.701,0.49798375]
[1772666978394,30.0,90.747,90.701,0.49798375]
[1772666979778,11.02004677,90.744,90.701,39.0862968]
[1772666979978,11.02004677,90.744,90.702,0.49798375]
[1772666980383,0.48653487,90.743,90.702,0.49798375]
[1772666981698,11.02004677,90.744,90.702,0.49798375]
[1772666982098,11.02061957,90.739,90.703,11.02499366]
[1772666982398,11.02061957,90.739,90.704,0.49798375]
[1772666983299,0.48653487,90.738,90.704,0.49798375]
[1772666983477,0.48653487,90.729,90.7,0.59798375]
[1772666983681,0.48653487,90.729,90.7,0.1]
[1772666984102,0.48653487,90.727,90.7,0.1]
[1772666984491,0.48653487,90.727,90.701,0.49798375]
[1772666985488,11.02195573,90.728,90.701,0.49798375]
[1772666985702,11.02153469,90.732,90.701,0.49798375]
[1772666988098,0.48653487,90.736,90.703,0.49798375]
[1772666990198,11.02110541,90.735,90.704,11.02487211]
[1772666990400,11.02110541,90.735,90.705,0.47671671]
[1772666992287,0.46541422,90.735,90.705,0.47671671]
[1772666994403,0.46541422,90.733,90.705,0.47671671]
[1772666994890,0.46541422,90.733,90.707,0.47671671]
[1772666996400,11.02146982,90.732,90.707,0.47671671]
[1772666996801,11.02146982,90.732,90.709,0.47671671]
[1772666998192,0.46541422,90.731,90.709,0.47671671]
[1772666998704,27.55331345,90.734,90.709,0.47671671]
[1772666998705,11.02171277,90.73,90.709,0.47671671]
[1772666999007,11.02061957,90.739,90.711,0.47671671]
[1772666999200,0.46541422,90.738,90.711,0.47671671]
[1772666999604,11.02061957,90.739,90.711,0.47671671]
[1772666999803,13.9,90.74,90.711,0.47671671]
[1772667000108,24.92053828,90.74,90.711,0.47671671]
[1772667000598,11.02074103,90.738,90.711,0.47671671]
[1772667001196,0.46541422,90.737,90.711,0.47671671]
[1772667001696,10.56150959,90.74,90.711,11.02394746]
[1772667001904,0.5,90.772,90.712,0.28432314]
[1772667002105,0.5,90.769,90.711,38.58400081]
[1772667002288,11.01649168,90.773,90.702,11.02511521]
[1772667002289,0.5,90.749,90.702,11.02511521]
[1772667002493,4.19861548,90.73,90.7,0.1]
[1772667002702,0.5,90.728,90.7,0.1]
[1772667003595,1653.0083109,91.632,90.7,0.1]
[1772667003596,11.02134831,90.734,90.7,0.1]
[1772667003814,11.02072676,90.739,90.7,0.1]
[1772667005119,11.02003865,90.744,90.7,0.1]
[1772667005616,0.28432314,90.704,90.656,11.0306825]
[1772667005822,3.69383402,90.741,90.614,44.14298292]
[1772667005823,0.5,90.699,90.651,11.03131791]
[1772667005996,0.5,90.739,90.651,38.60961268]
[1772667006313,0.5,90.723,90.655,0.28432314]
[1772667007530,0.28432314,90.732,90.659,3.69383402]
[1772667007531,0.5,90.719,90.659,3.69383402]
[1772667009525,38.57939639,90.722,90.66,38.60577983]
[1772667009526,0.5,90.717,90.66,38.60577983]
[1772667011120,0.5,90.717,90.664,0.28432314]
[1772667011504,42.41753533,90.743,90.66,27.57555702]
[1772667011505,0.5,90.715,90.66,27.57555702]
[1772667012722,0.5,90.713,90.66,27.57555702]
[1772667013125,0.5,90.709,90.655,11.03083117]
[1772667013699,0.5,90.707,90.648,0.28432314]
[1772667013903,11.02388092,90.713,90.648,0.28432314]
[1772667014803,11.52388092,90.713,90.648,0.28432314]
[1772667015003,0.5,90.712,90.653,0.28432314]
[1772667017124,0.5,90.71,90.658,0.28432314]
[1772667017509,0.5,90.728,90.661,3.69383402]
[1772667017710,0.5,90.728,90.662,0.28432314]
[1772667019227,9.00099054,90.74,90.662,0.28432314]
[1772667019228,0.5,90.726,90.667,0.28432314]
[1772667021620,0.5,90.724,90.671,3.69383402]
[1772667022527,0.5,90.736,90.672,0.28432314]
[1772667023526,0.5,90.732,90.671,3.69383402]
[1772667023728,0.5,90.73,90.675,3.69383402]
[1772667026527,0.5,90.73,90.652,61.3]
[1772667026528,11.02126803,90.734,90.679,3.69383402]
[1772667026721,11.52126803,90.734,90.679,3.69383402]
[1772667027114,11.02126803,90.734,90.679,3.69383402]
[1772667027325,0.5,90.733,90.679,3.69383402]
[1772667028732,0.5,90.733,90.68,38.5972651]
[1772667029031,0.5,90.731,90.68,38.5972651]
[1772667029532,0.5,90.731,90.663,61.3]
[1772667029533,0.48726471,90.699,90.646,0.48945484]
[1772667030613,0.48726471,90.697,90.647,11.03180469]
[1772667030817,0.48726471,90.697,90.648,0.48945484]
[1772667031535,11.02510003,90.703,90.651,0.48945484]
[1772667032116,0.48726471,90.702,90.651,0.48945484]
[1772667033144,11.02523676,90.701,90.652,11.03119622]
[1772667033344,0.48726471,90.7,90.653,0.48945484]
[1772667035349,0.48726471,90.698,90.655,0.48945484]
[1772667036039,11.02382585,90.713,90.659,0.48945484]
[1772667036540,11.02382585,90.713,90.621,1.10349698]
[1772667036541,0.48726471,90.712,90.645,0.48945484]
[1772667036736,0.48726471,90.689,90.639,0.48945484]
[1772667038540,170.86479632,90.715,90.639,0.48945484]
[1772667038541,0.48726471,90.683,90.639,0.48945484]
[1772667040541,0.48726471,90.681,90.639,0.48945484]
[1772667042232,0.48726471,90.673,90.63,0.1]
[1772667042535,0.48726471,90.671,90.63,0.58945484]
[1772667042939,0.28432314,90.666,90.63,0.1]
[1772667043140,0.48726471,90.663,90.63,0.1]
[1772667044039,0.48726471,90.663,90.631,0.48945484]
[1772667045245,0.48726471,90.661,90.631,0.48945484]
[1772667045658,0.48726471,90.661,90.63,0.1]
[1772667045855,38.60492819,90.662,90.601,0.48945484]
[1772667045856,0.28432314,90.654,90.601,0.48945484]
[1772667046041,0.4,90.653,90.602,0.48945484]
[1772667046244,0.4,90.629,90.6,0.1]
[1772667046635,270.23449733,90.662,90.601,0.48945484]
[1772667046636,38.60492819,90.662,90.601,0.48945484]
[1772667046941,0.4,90.661,90.601,0.48945484]
[1772667047264,38.60492819,90.662,90.6,11.13741226]
[1772667047265,0.4,90.653,90.603,0.48945484]
[1772667047557,0.4,90.664,90.609,0.48945484]
[1772667047737,11.02912792,90.669,90.609,0.48945484]
[1772667048756,27.97178147,90.673,90.611,0.49044556]
[1772667048950,0.4,90.672,90.611,0.49044556]
[1772667050370,27.57178147,90.673,90.619,0.49044556]
[1772667050371,0.4,90.673,90.619,0.49044556]
[1772667050746,0.4,90.663,90.619,0.49044556]
[1772667051249,0.4,90.661,90.619,0.49044556]
[1772667052154,0.4,90.661,90.62,0.49044556]
[1772667052548,0.4,90.661,90.609,0.49044556]
[1772667052860,0.4,90.653,90.609,0.49044556]
[1772667053469,0.4,90.651,90.609,0.49044556]
[1772667053672,0.4,90.651,90.611,0.49044556]
[1772667053971,38.60918677,90.652,90.611,0.49044556]
[1772667053972,11.03119622,90.652,90.611,0.49044556]
[1772667055270,11.03070949,90.656,90.613,0.49044556]
[1772667055451,0.4,90.655,90.613,0.49044556]
[1772667055775,11.02997948,90.662,90.613,0.49044556]
[1772667055978,0.4,90.674,90.612,38.62623051]
[1772667055979,11.02876301,90.672,90.618,0.28432314]
[1772667056284,11.02876301,90.672,90.619,0.49044556]
[1772667057577,11.02876301,90.672,90.621,0.49044556]
[1772667058163,0.4,90.671,90.621,0.49044556]
[1772667059288,11.02900628,90.67,90.623,0.49044556]
[1772667059459,11.02900628,90.67,90.626,0.49044556]
[1772667059785,11.02791164,90.679,90.63,0.49044556]
[1772667061079,11.42791164,90.679,90.63,0.49044556]
[1772667061282,0.4,90.678,90.63,0.49044556]
[1772667061484,0.4,90.676,90.632,0.49044556]
[1772667061675,0.4,90.676,90.593,49.16593516]
[1772667061676,0.4,90.664,90.605,0.49044556]
[1772667062386,0.4,90.653,90.601,11.03740576]
[1772667062591,0.4,90.643,90.594,0.49044556]
[1772667063090,0.4,90.639,90.594,0.49044556]
[1772667063471,0.4,90.633,90.593,5.01277527]